[Event "*** Titled Tuesday Blitz"]
[Site "Chess.com"]
[Date "2020.05.12"]
[Round "10"]
[White "zala02"]
[Black "DinaBelenkaya"]
[Result "0-1"]
[WhiteElo "2242"]
[BlackElo "2139"]
[TimeControl "180+1"]
[EndTime "11:53:49 PDT"]
[Termination "DinaBelenkaya won on time"]

1. d4 {[%clk 0:03:00.9]} 1... Nf6 {[%clk 0:02:58.7]} 2. c4 {[%clk 0:03:00.5]}
2... c5 {[%clk 0:02:56.9]} 3. d5 {[%clk 0:03:00.1]} 3... e5 {[%clk 0:02:56.5]}
4. Nc3 {[%clk 0:02:57.5]} 4... d6 {[%clk 0:02:56.2]} 5. e4 {[%clk 0:02:46.8]}
5... Be7 {[%clk 0:02:54.8]} 6. g3 {[%clk 0:02:43.9]} 6... a6 {[%clk 0:02:45.2]}
7. a4 {[%clk 0:02:39.5]} 7... b6 {[%clk 0:02:39.1]} 8. Bg2 {[%clk 0:02:37]} 8...
Nbd7 {[%clk 0:02:32.3]} 9. Nge2 {[%clk 0:02:35.9]} 9... h5 {[%clk 0:02:32]} 10.
h4 {[%clk 0:02:11.6]} 10... Nf8 {[%clk 0:02:28.8]} 11. Qd3 {[%clk 0:01:49.9]}
11... Bd7 {[%clk 0:02:24.2]} 12. Bg5 {[%clk 0:01:32.1]} 12... Qc8 {[%clk
0:02:22.9]} 13. f4 {[%clk 0:01:19.3]} 13... Ng4 {[%clk 0:02:13.1]} 14. Bxe7
{[%clk 0:01:16.7]} 14... Kxe7 {[%clk 0:02:14]} 15. Nd1 {[%clk 0:01:05.9]} 15...
Nh7 {[%clk 0:02:02.5]} 16. Ne3 {[%clk 0:00:55.4]} 16... Nhf6 {[%clk 0:01:52.9]}
17. Bf3 {[%clk 0:00:45.5]} 17... Kf8 {[%clk 0:01:00]} 18. Bxg4 {[%clk
0:00:42.9]} 18... Nxg4 {[%clk 0:00:56.7]} 19. Nxg4 {[%clk 0:00:42.7]} 19... Bxg4
{[%clk 0:00:50.8]} 20. fxe5 {[%clk 0:00:43.1]} 20... dxe5 {[%clk 0:00:35.9]} 21.
Rf1 {[%clk 0:00:40.8]} 21... Rh6 {[%clk 0:00:35.4]} 22. Kd2 {[%clk 0:00:30.4]}
22... b5 {[%clk 0:00:35.3]} 23. axb5 {[%clk 0:00:19.5]} 23... axb5 {[%clk
0:00:35.1]} 24. cxb5 {[%clk 0:00:19.9]} 24... Rxa1 {[%clk 0:00:22.2]} 25. Rxa1
{[%clk 0:00:19.5]} 25... c4 {[%clk 0:00:20.7]} 26. Qe3 {[%clk 0:00:17.2]} 26...
Qb7 {[%clk 0:00:14.1]} 27. Nc3 {[%clk 0:00:17.2]} 27... Rf6 {[%clk 0:00:11.1]}
28. Qc5+ {[%clk 0:00:16]} 28... Kg8 {[%clk 0:00:11.5]} 29. Qxc4 {[%clk 0:00:16]}
29... Rf2+ {[%clk 0:00:10.8]} 30. Ke1 {[%clk 0:00:11.2]} 30... Rxb2 {[%clk
0:00:10.9]} 31. d6 {[%clk 0:00:10.3]} 31... Qb6 {[%clk 0:00:10.6]} 32. Ra8+
{[%clk 0:00:05.8]} 32... Kh7 {[%clk 0:00:10.3]} 33. Nd1 {[%clk 0:00:02.9]} 33...
Qg1+ {[%clk 0:00:10.1]} 34. Qf1 {[%clk 0:00:02.2]} 34... Qxg3+ {[%clk
0:00:10.3]} 35. Nf2 {[%clk 0:00:01.2]} 35... Qe3+ {[%clk 0:00:09.8]} 0-1

[Event "*** Titled Tuesday Blitz"]
[Site "Chess.com"]
[Date "2020.05.12"]
[Round "10"]
[White "Jumbo"]
[Black "mbojan"]
[Result "1-0"]
[WhiteElo "2841"]
[BlackElo "2709"]
[TimeControl "180+1"]
[EndTime "11:53:50 PDT"]
[Termination "Jumbo won by resignation"]

1. d4 {[%clk 0:03:00.9]} 1... Nf6 {[%clk 0:02:59.6]} 2. Bf4 {[%clk 0:03:01.3]}
2... g6 {[%clk 0:02:58.3]} 3. e3 {[%clk 0:03:01.6]} 3... Bg7 {[%clk 0:02:58.3]}
4. Nf3 {[%clk 0:03:02.1]} 4... O-O {[%clk 0:02:58.6]} 5. Be2 {[%clk 0:03:02.6]}
5... d6 {[%clk 0:02:58.8]} 6. h3 {[%clk 0:03:01.4]} 6... b6 {[%clk 0:02:59]} 7.
c4 {[%clk 0:02:58.3]} 7... Nbd7 {[%clk 0:02:58.4]} 8. Nc3 {[%clk 0:02:56.8]}
8... Bb7 {[%clk 0:02:58.8]} 9. Qc2 {[%clk 0:02:56.4]} 9... a6 {[%clk 0:02:46.7]}
10. O-O {[%clk 0:02:46.5]} 10... c5 {[%clk 0:02:46.5]} 11. Rad1 {[%clk 0:02:34]}
11... cxd4 {[%clk 0:02:43.8]} 12. exd4 {[%clk 0:02:34.9]} 12... Rc8 {[%clk
0:02:24.3]} 13. Qb3 {[%clk 0:02:32]} 13... Ne4 {[%clk 0:02:19.1]} 14. Nxe4
{[%clk 0:02:14]} 14... Bxe4 {[%clk 0:02:20]} 15. Qa3 {[%clk 0:02:13.9]} 15...
Bb7 {[%clk 0:01:37.5]} 16. d5 {[%clk 0:02:09.2]} 16... Nf6 {[%clk 0:01:32.9]}
17. Rfe1 {[%clk 0:02:06.5]} 17... b5 {[%clk 0:01:31.1]} 18. b3 {[%clk 0:01:52]}
18... bxc4 {[%clk 0:01:30.1]} 19. Bxc4 {[%clk 0:01:49.9]} 19... Nd7 {[%clk
0:01:28.5]} 20. Bg5 {[%clk 0:01:37.2]} 20... Bf6 {[%clk 0:01:23.6]} 21. Qc1
{[%clk 0:01:14.1]} 21... a5 {[%clk 0:01:08.8]} 22. Qf4 {[%clk 0:01:13.1]} 22...
Bxg5 {[%clk 0:00:58.2]} 23. Qxg5 {[%clk 0:01:12.2]} 23... Nf6 {[%clk 0:00:55.8]}
24. a4 {[%clk 0:01:06.5]} 24... Rc5 {[%clk 0:00:54.4]} 25. Qh6 {[%clk
0:01:06.4]} 25... Bxd5 {[%clk 0:00:48]} 26. Bxd5 {[%clk 0:00:43.4]} 26... Rxd5
{[%clk 0:00:48.9]} 27. Rxd5 {[%clk 0:00:32.2]} 27... Nxd5 {[%clk 0:00:49.8]} 28.
Ng5 {[%clk 0:00:26.1]} 28... Nf6 {[%clk 0:00:49.5]} 29. Re4 {[%clk 0:00:25.4]}
29... e6 {[%clk 0:00:12.7]} 30. Rh4 {[%clk 0:00:19.4]} 30... Re8 {[%clk
0:00:12.8]} 31. Nxh7 {[%clk 0:00:17.6]} 31... Nxh7 {[%clk 0:00:10.9]} 32. Qxh7+
{[%clk 0:00:18.5]} 32... Kf8 {[%clk 0:00:11.7]} 33. Rf4 {[%clk 0:00:18.8]} 33...
Qc7 {[%clk 0:00:07.6]} 34. Qh8+ {[%clk 0:00:14.5]} 34... Ke7 {[%clk 0:00:07.7]}
35. Qf6+ {[%clk 0:00:15.1]} 35... Kf8 {[%clk 0:00:08.2]} 36. Rh4 {[%clk
0:00:14.7]} 36... Qc1+ {[%clk 0:00:05]} 37. Kh2 {[%clk 0:00:15]} 1-0

[Event "*** Titled Tuesday Blitz"]
[Site "Chess.com"]
[Date "2020.05.12"]
[Round "10"]
[White "BabyBoss31"]
[Black "chessablanca"]
[Result "0-1"]
[WhiteElo "2330"]
[BlackElo "2467"]
[TimeControl "180+1"]
[EndTime "11:53:50 PDT"]
[Termination "chessablanca won by resignation"]

1. d4 {[%clk 0:03:00.9]} 1... Nf6 {[%clk 0:02:59.6]} 2. c4 {[%clk 0:02:59.8]}
2... e6 {[%clk 0:03:00]} 3. Nf3 {[%clk 0:02:59.6]} 3... Bb4+ {[%clk 0:03:00.3]}
4. Bd2 {[%clk 0:02:55.6]} 4... Qe7 {[%clk 0:03:00.3]} 5. g3 {[%clk 0:02:53.8]}
5... O-O {[%clk 0:03:00.1]} 6. Bg2 {[%clk 0:02:50.7]} 6... Bxd2+ {[%clk
0:03:00.3]} 7. Qxd2 {[%clk 0:02:49.1]} 7... d6 {[%clk 0:03:00.9]} 8. Nc3 {[%clk
0:02:47.5]} 8... Nbd7 {[%clk 0:02:58.9]} 9. O-O {[%clk 0:02:44.6]} 9... e5
{[%clk 0:02:57.1]} 10. Rac1 {[%clk 0:02:41.4]} 10... c6 {[%clk 0:02:56.6]} 11.
e4 {[%clk 0:02:37.3]} 11... Re8 {[%clk 0:02:54.5]} 12. Rfe1 {[%clk 0:02:33.5]}
12... h6 {[%clk 0:02:46.1]} 13. Nh4 {[%clk 0:02:18.4]} 13... Nf8 {[%clk
0:02:41.7]} 14. Nf5 {[%clk 0:02:15.4]} 14... Bxf5 {[%clk 0:02:35.9]} 15. exf5
{[%clk 0:02:16.3]} 15... Qc7 {[%clk 0:02:35.9]} 16. d5 {[%clk 0:01:57.6]} 16...
N8d7 {[%clk 0:02:22.7]} 17. h3 {[%clk 0:01:53.5]} 17... Nb6 {[%clk 0:02:14.7]}
18. b3 {[%clk 0:01:49.8]} 18... h5 {[%clk 0:02:14.6]} 19. Bf3 {[%clk 0:01:34.9]}
19... Qd7 {[%clk 0:01:57.1]} 20. Qg5 {[%clk 0:01:32.6]} 20... cxd5 {[%clk
0:01:52.1]} 21. Nxd5 {[%clk 0:01:25.8]} 21... Nbxd5 {[%clk 0:01:51.4]} 22. cxd5
{[%clk 0:01:22.7]} 22... e4 {[%clk 0:01:46.5]} 23. Bxh5 {[%clk 0:01:22.1]} 23...
Re5 {[%clk 0:01:47]} 24. Qe3 {[%clk 0:00:53.8]} 24... Qxf5 {[%clk 0:01:41.5]}
25. Bg4 {[%clk 0:00:30.3]} 25... Nxg4 {[%clk 0:01:36.5]} 26. hxg4 {[%clk
0:00:31.2]} 26... Qxg4 {[%clk 0:01:36.7]} 27. Rc4 {[%clk 0:00:30.9]} 27... Rae8
{[%clk 0:01:33.9]} 28. Qf4 {[%clk 0:00:23.8]} 28... Qxf4 {[%clk 0:01:14.4]} 29.
gxf4 {[%clk 0:00:24.7]} 29... Rxd5 {[%clk 0:01:14.9]} 30. Rcxe4 {[%clk
0:00:24.7]} 30... Rxe4 {[%clk 0:01:07.2]} 31. Rxe4 {[%clk 0:00:25.6]} 31... Kf8
{[%clk 0:01:05.6]} 32. Rb4 {[%clk 0:00:17.8]} 32... b6 {[%clk 0:01:04.9]} 33.
Rc4 {[%clk 0:00:16.9]} 33... Rc5 {[%clk 0:01:03]} 34. Rd4 {[%clk 0:00:16.3]}
34... Ke7 {[%clk 0:01:03.1]} 35. Kg2 {[%clk 0:00:15.6]} 35... Rc2 {[%clk
0:00:57.3]} 36. Ra4 {[%clk 0:00:14.9]} 36... a5 {[%clk 0:00:56.7]} 37. Kf3
{[%clk 0:00:15.3]} 37... d5 {[%clk 0:00:55.3]} 38. a3 {[%clk 0:00:11.2]} 38...
Rc3+ {[%clk 0:00:54.6]} 39. Ke2 {[%clk 0:00:11.7]} 39... Rxb3 {[%clk 0:00:54.9]}
40. f5 {[%clk 0:00:10.7]} 40... Kd6 {[%clk 0:00:54]} 41. Rg4 {[%clk 0:00:10.3]}
41... Rxa3 {[%clk 0:00:49.4]} 42. Rxg7 {[%clk 0:00:10.4]} 42... Ke7 {[%clk
0:00:48.9]} 43. Rg4 {[%clk 0:00:09.4]} 43... Kf6 {[%clk 0:00:48.9]} 44. Rd4
{[%clk 0:00:09.5]} 44... Ke5 {[%clk 0:00:48.4]} 45. Rd1 {[%clk 0:00:09.5]} 45...
Ra2+ {[%clk 0:00:48.3]} 46. Ke3 {[%clk 0:00:09.3]} 46... b5 {[%clk 0:00:48.2]}
47. f4+ {[%clk 0:00:09.2]} 47... Kd6 {[%clk 0:00:47]} 48. Kd4 {[%clk 0:00:08.1]}
48... Ra4+ {[%clk 0:00:47]} 49. Ke3 {[%clk 0:00:07.7]} 49... Rc4 {[%clk
0:00:47.5]} 50. Ra1 {[%clk 0:00:07.5]} 50... a4 {[%clk 0:00:47.6]} 51. f6 {[%clk
0:00:04.6]} 51... Ke6 {[%clk 0:00:46.6]} 52. Rd1 {[%clk 0:00:03]} 52... a3
{[%clk 0:00:45.5]} 53. Rb1 {[%clk 0:00:03.4]} 53... b4 {[%clk 0:00:45.5]} 54.
Ra1 {[%clk 0:00:04]} 54... Kxf6 {[%clk 0:00:41.6]} 55. Rb1 {[%clk 0:00:04.9]}
55... Ke6 {[%clk 0:00:40.3]} 0-1

[Event "*** Titled Tuesday Blitz"]
[Site "Chess.com"]
[Date "2020.05.12"]
[Round "10"]
[White "earling8018"]
[Black "spela91"]
[Result "1-0"]
[WhiteElo "2033"]
[BlackElo "2060"]
[TimeControl "180+1"]
[EndTime "11:53:50 PDT"]
[Termination "earling8018 won on time"]

1. d4 {[%clk 0:03:00.9]} 1... d5 {[%clk 0:02:59.8]} 2. c4 {[%clk 0:03:00.1]}
2... c6 {[%clk 0:02:59.7]} 3. cxd5 {[%clk 0:02:58.7]} 3... cxd5 {[%clk
0:03:00.6]} 4. Nc3 {[%clk 0:02:58.8]} 4... Nc6 {[%clk 0:02:59.1]} 5. Bf4 {[%clk
0:02:58.7]} 5... Nf6 {[%clk 0:02:57.2]} 6. e3 {[%clk 0:02:58.7]} 6... a6 {[%clk
0:02:57.1]} 7. Bd3 {[%clk 0:02:57.6]} 7... Bg4 {[%clk 0:02:49]} 8. Nge2 {[%clk
0:02:51.6]} 8... e6 {[%clk 0:02:47.2]} 9. O-O {[%clk 0:02:48.8]} 9... Be7 {[%clk
0:02:45.2]} 10. a3 {[%clk 0:02:37.3]} 10... O-O {[%clk 0:02:42.1]} 11. b4 {[%clk
0:02:37.3]} 11... Rc8 {[%clk 0:02:33]} 12. Qb3 {[%clk 0:02:36.9]} 12... b5
{[%clk 0:02:21.9]} 13. f3 {[%clk 0:02:16.1]} 13... Bh5 {[%clk 0:02:21.6]} 14.
Ng3 {[%clk 0:02:12.7]} 14... Bg6 {[%clk 0:02:21.1]} 15. Bxg6 {[%clk 0:02:12.2]}
15... hxg6 {[%clk 0:02:18.2]} 16. Rad1 {[%clk 0:02:00.2]} 16... Nh5 {[%clk
0:02:15.2]} 17. Nxh5 {[%clk 0:01:58.2]} 17... gxh5 {[%clk 0:02:16.1]} 18. Ne2
{[%clk 0:01:49.5]} 18... Bf6 {[%clk 0:02:02.5]} 19. Rc1 {[%clk 0:01:41.2]} 19...
g5 {[%clk 0:01:35.7]} 20. Bg3 {[%clk 0:01:39.9]} 20... h4 {[%clk 0:01:35.2]} 21.
Bf2 {[%clk 0:01:39.5]} 21... Qd7 {[%clk 0:01:25.4]} 22. Rc2 {[%clk 0:01:22.3]}
22... Ne7 {[%clk 0:01:16.5]} 23. Rfc1 {[%clk 0:01:20.9]} 23... Rc4 {[%clk
0:01:16.3]} 24. Rxc4 {[%clk 0:01:16.4]} 24... bxc4 {[%clk 0:01:11.3]} 25. Qc2
{[%clk 0:01:15.2]} 25... Nc6 {[%clk 0:01:03.7]} 26. Nc3 {[%clk 0:01:14.8]} 26...
Rb8 {[%clk 0:00:59.4]} 27. Be1 {[%clk 0:00:48]} 27... Qb7 {[%clk 0:00:43]} 28.
Bd2 {[%clk 0:00:46.1]} 28... Na7 {[%clk 0:00:37.3]} 29. f4 {[%clk 0:00:46]}
29... gxf4 {[%clk 0:00:34]} 30. Rf1 {[%clk 0:00:45.9]} 30... fxe3 {[%clk
0:00:16.1]} 31. Rxf6 {[%clk 0:00:44.8]} 31... exd2 {[%clk 0:00:15.9]} 32. Qxd2
{[%clk 0:00:45.4]} 32... Kf8 {[%clk 0:00:11]} 33. Qf4 {[%clk 0:00:40.5]} 33...
Ke8 {[%clk 0:00:09]} 34. Na4 {[%clk 0:00:39.6]} 34... Nb5 {[%clk 0:00:06.1]} 35.
Nc5 {[%clk 0:00:39.1]} 35... Qe7 {[%clk 0:00:06.1]} 36. Qxh4 {[%clk 0:00:36.2]}
36... Kd8 {[%clk 0:00:04.5]} 37. Qh8+ {[%clk 0:00:34.5]} 37... Qe8 {[%clk
0:00:04.1]} 38. Qh4 {[%clk 0:00:29.4]} 38... c3 {[%clk 0:00:02.8]} 39. Rxe6+
{[%clk 0:00:21.6]} 1-0

[Event "*** Titled Tuesday Blitz"]
[Site "Chess.com"]
[Date "2020.05.12"]
[Round "10"]
[White "FedaMaster"]
[Black "KaterynaLagno"]
[Result "0-1"]
[WhiteElo "2554"]
[BlackElo "2696"]
[TimeControl "180+1"]
[EndTime "11:53:52 PDT"]
[Termination "KaterynaLagno won by resignation"]

1. e4 {[%clk 0:02:56.3]} 1... e5 {[%clk 0:02:59.6]} 2. Nf3 {[%clk 0:02:56]} 2...
Nc6 {[%clk 0:03:00.2]} 3. Bb5 {[%clk 0:02:56.3]} 3... g6 {[%clk 0:02:59.1]} 4.
d4 {[%clk 0:02:48.2]} 4... exd4 {[%clk 0:02:58.1]} 5. Bg5 {[%clk 0:02:25.7]}
5... Be7 {[%clk 0:02:57.5]} 6. Bxe7 {[%clk 0:02:23.1]} 6... Qxe7 {[%clk
0:02:58.4]} 7. Bxc6 {[%clk 0:02:20.6]} 7... dxc6 {[%clk 0:02:59.3]} 8. Qxd4
{[%clk 0:02:20.2]} 8... Nf6 {[%clk 0:02:59.4]} 9. Nbd2 {[%clk 0:02:14.4]} 9...
c5 {[%clk 0:02:56.6]} 10. Qe5 {[%clk 0:02:11.1]} 10... Be6 {[%clk 0:02:52.7]}
11. O-O-O {[%clk 0:01:19]} 11... O-O-O {[%clk 0:02:51.9]} 12. h3 {[%clk
0:01:09.6]} 12... b6 {[%clk 0:02:38.5]} 13. b3 {[%clk 0:00:47.6]} 13... Rhe8
{[%clk 0:02:35.2]} 14. Rhe1 {[%clk 0:00:46.5]} 14... h6 {[%clk 0:02:23.3]} 15.
Qc3 {[%clk 0:00:36.4]} 15... g5 {[%clk 0:02:17.2]} 16. Ng1 {[%clk 0:00:28.3]}
16... Nh5 {[%clk 0:02:11.7]} 17. Ne2 {[%clk 0:00:26]} 17... Bd7 {[%clk
0:02:04.7]} 18. f3 {[%clk 0:00:25.8]} 18... Bc6 {[%clk 0:02:04.2]} 19. Nc4
{[%clk 0:00:25.8]} 19... f6 {[%clk 0:01:59.9]} 20. Rxd8+ {[%clk 0:00:25.5]}
20... Rxd8 {[%clk 0:02:00.8]} 21. Rd1 {[%clk 0:00:25.6]} 21... Rxd1+ {[%clk
0:01:57.5]} 22. Kxd1 {[%clk 0:00:26.5]} 22... Bb5 {[%clk 0:01:56.9]} 23. Ne3
{[%clk 0:00:25.6]} 23... Qd6+ {[%clk 0:01:50.2]} 24. Qd2 {[%clk 0:00:23.8]}
24... Bxe2+ {[%clk 0:01:32.1]} 25. Kxe2 {[%clk 0:00:23.6]} 25... Nf4+ {[%clk
0:01:26.9]} 26. Ke1 {[%clk 0:00:23.5]} 26... Qe5 {[%clk 0:01:24.4]} 27. Kf2
{[%clk 0:00:17.5]} 27... h5 {[%clk 0:01:24.1]} 28. Nc4 {[%clk 0:00:17.2]} 28...
Qa1 {[%clk 0:01:19.9]} 29. Ne3 {[%clk 0:00:15]} 29... Qxa2 {[%clk 0:01:11.3]}
30. Qc3 {[%clk 0:00:13.9]} 30... h4 {[%clk 0:00:54.4]} 31. Qxf6 {[%clk
0:00:12.6]} 31... Qa5 {[%clk 0:00:55.1]} 32. Qf5+ {[%clk 0:00:11.1]} 32... Kb7
{[%clk 0:00:54]} 33. Qd7 {[%clk 0:00:11.4]} 33... Qc3 {[%clk 0:00:51.6]} 34. Qd1
{[%clk 0:00:11.3]} 34... a5 {[%clk 0:00:47.8]} 35. Nd5 {[%clk 0:00:11.6]} 35...
Nxd5 {[%clk 0:00:47.1]} 36. Qxd5+ {[%clk 0:00:12.5]} 36... c6 {[%clk 0:00:44.8]}
37. Qd7+ {[%clk 0:00:12]} 37... Ka6 {[%clk 0:00:43.5]} 38. Qd1 {[%clk 0:00:12]}
38... b5 {[%clk 0:00:42]} 39. Qe2 {[%clk 0:00:12.1]} 39... Kb6 {[%clk
0:00:41.3]} 40. e5 {[%clk 0:00:12.4]} 40... Kc7 {[%clk 0:00:38]} 41. e6 {[%clk
0:00:12.6]} 41... Qd4+ {[%clk 0:00:37.5]} 42. Kf1 {[%clk 0:00:12.7]} 42... Kd8
{[%clk 0:00:37.8]} 43. e7+ {[%clk 0:00:11.8]} 43... Ke8 {[%clk 0:00:37.8]} 44.
Qe6 {[%clk 0:00:12.1]} 44... Qd5 {[%clk 0:00:37.1]} 45. Qf6 {[%clk 0:00:10.9]}
45... Qd1+ {[%clk 0:00:36.4]} 46. Kf2 {[%clk 0:00:11]} 46... Qd4+ {[%clk
0:00:37.2]} 47. Qxd4 {[%clk 0:00:10.4]} 47... cxd4 {[%clk 0:00:38.1]} 48. f4
{[%clk 0:00:09.5]} 48... gxf4 {[%clk 0:00:37.3]} 49. Kf3 {[%clk 0:00:10.1]}
49... a4 {[%clk 0:00:37.6]} 50. bxa4 {[%clk 0:00:10.6]} 50... bxa4 {[%clk
0:00:38.5]} 51. Ke2 {[%clk 0:00:11]} 51... a3 {[%clk 0:00:38]} 52. Kd2 {[%clk
0:00:11.5]} 52... a2 {[%clk 0:00:38.6]} 53. Kd3 {[%clk 0:00:12.4]} 53... a1=Q
{[%clk 0:00:38.7]} 0-1

[Event "*** Titled Tuesday Blitz"]
[Site "Chess.com"]
[Date "2020.05.12"]
[Round "10"]
[White "profofchess"]
[Black "Unknown_IM"]
[Result "0-1"]
[WhiteElo "2434"]
[BlackElo "2565"]
[TimeControl "180+1"]
[EndTime "11:53:53 PDT"]
[Termination "Unknown_IM won by resignation"]

1. e4 {[%clk 0:03:00.9]} 1... e5 {[%clk 0:02:50.4]} 2. f4 {[%clk 0:03:00.1]}
2... d5 {[%clk 0:02:49.7]} 3. exd5 {[%clk 0:02:59.7]} 3... e4 {[%clk 0:02:50.1]}
4. d3 {[%clk 0:02:59.1]} 4... Nf6 {[%clk 0:02:49.7]} 5. dxe4 {[%clk 0:02:57.8]}
5... Nxe4 {[%clk 0:02:50.1]} 6. Be3 {[%clk 0:02:55.1]} 6... Bd6 {[%clk
0:02:44.3]} 7. Nf3 {[%clk 0:02:52.5]} 7... O-O {[%clk 0:02:43.4]} 8. Bd3 {[%clk
0:02:49.2]} 8... Re8 {[%clk 0:02:43.3]} 9. O-O {[%clk 0:02:46.9]} 9... Nd7
{[%clk 0:02:35.6]} 10. Re1 {[%clk 0:02:34.8]} 10... Ndf6 {[%clk 0:02:35.2]} 11.
c4 {[%clk 0:02:28.9]} 11... Bg4 {[%clk 0:02:17.5]} 12. Nbd2 {[%clk 0:02:13.9]}
12... Nxd2 {[%clk 0:01:45.6]} 13. Bxd2 {[%clk 0:02:12.4]} 13... Bc5+ {[%clk
0:01:46]} 14. Kh1 {[%clk 0:02:09.3]} 14... Qd6 {[%clk 0:01:45.7]} 15. Rb1 {[%clk
0:01:59.5]} 15... Rxe1+ {[%clk 0:01:44.5]} 16. Qxe1 {[%clk 0:01:52.2]} 16...
Bxf3 {[%clk 0:01:42.4]} 17. gxf3 {[%clk 0:01:51.9]} 17... Re8 {[%clk 0:01:43]}
18. Qg3 {[%clk 0:01:43]} 18... Be3 {[%clk 0:01:40]} 19. Bc3 {[%clk 0:01:01.7]}
19... Bxf4 {[%clk 0:01:35]} 20. Qh4 {[%clk 0:01:01.4]} 20... Be5 {[%clk
0:01:28.8]} 21. Re1 {[%clk 0:00:50.6]} 21... g6 {[%clk 0:00:58.7]} 22. Kg2
{[%clk 0:00:27.5]} 22... Bxc3 {[%clk 0:00:56.4]} 23. Rxe8+ {[%clk 0:00:22.7]}
23... Nxe8 {[%clk 0:00:57.3]} 24. bxc3 {[%clk 0:00:22.9]} 24... Nf6 {[%clk
0:00:56.8]} 25. Qd4 {[%clk 0:00:22]} 25... Kg7 {[%clk 0:00:54.4]} 26. Be4 {[%clk
0:00:18.4]} 26... b6 {[%clk 0:00:53.4]} 27. h3 {[%clk 0:00:11.8]} 27... Qa3
{[%clk 0:00:50.5]} 28. Kg3 {[%clk 0:00:05.5]} 28... Qxa2 {[%clk 0:00:43.9]} 29.
d6 {[%clk 0:00:05.5]} 29... cxd6 {[%clk 0:00:43.4]} 30. Qxd6 {[%clk 0:00:05.6]}
30... Nh5+ {[%clk 0:00:43.2]} 31. Kh4 {[%clk 0:00:05.4]} 31... Qf2+ {[%clk
0:00:41.4]} 32. Kg4 {[%clk 0:00:05.3]} 32... Qg1+ {[%clk 0:00:11.1]} 33. Kh4
{[%clk 0:00:05]} 33... Qe1+ {[%clk 0:00:11.3]} 34. Kg4 {[%clk 0:00:04.9]} 34...
Qg1+ {[%clk 0:00:08.4]} 35. Kh4 {[%clk 0:00:05.1]} 35... Qf2+ {[%clk 0:00:08.9]}
36. Kg4 {[%clk 0:00:05.2]} 36... Nf6+ {[%clk 0:00:09.5]} 37. Kg5 {[%clk
0:00:04.4]} 37... h6+ {[%clk 0:00:08.4]} 38. Kf4 {[%clk 0:00:04.6]} 38... Qh2+
{[%clk 0:00:09]} 0-1

[Event "*** Titled Tuesday Blitz"]
[Site "Chess.com"]
[Date "2020.05.12"]
[Round "10"]
[White "Bacyanide"]
[Black "IMinTheWings"]
[Result "1-0"]
[WhiteElo "2427"]
[BlackElo "2229"]
[TimeControl "180+1"]
[EndTime "11:53:53 PDT"]
[Termination "Bacyanide won by checkmate"]

1. d4 {[%clk 0:03:00.9]} 1... Nf6 {[%clk 0:02:57.2]} 2. Nf3 {[%clk 0:03:01.1]}
2... e6 {[%clk 0:02:57]} 3. c4 {[%clk 0:03:01]} 3... c5 {[%clk 0:02:56.9]} 4. d5
{[%clk 0:03:00.1]} 4... b5 {[%clk 0:02:57]} 5. dxe6 {[%clk 0:02:58.2]} 5... fxe6
{[%clk 0:02:57.9]} 6. cxb5 {[%clk 0:02:58.6]} 6... d5 {[%clk 0:02:58.5]} 7. Bg5
{[%clk 0:02:57.6]} 7... Bd6 {[%clk 0:02:58]} 8. e3 {[%clk 0:02:57.7]} 8... Nbd7
{[%clk 0:02:57.9]} 9. Nc3 {[%clk 0:02:57.7]} 9... O-O {[%clk 0:02:53.5]} 10. Be2
{[%clk 0:02:58]} 10... Bb7 {[%clk 0:02:53.7]} 11. O-O {[%clk 0:02:58.1]} 11...
Kh8 {[%clk 0:02:39.2]} 12. a4 {[%clk 0:02:58]} 12... Qc7 {[%clk 0:02:35.4]} 13.
a5 {[%clk 0:02:55.2]} 13... Rae8 {[%clk 0:02:34.6]} 14. b6 {[%clk 0:02:36.7]}
14... axb6 {[%clk 0:02:25.4]} 15. Nb5 {[%clk 0:02:36.7]} 15... Qb8 {[%clk
0:02:25.4]} 16. a6 {[%clk 0:02:36.5]} 16... Ba8 {[%clk 0:02:24.6]} 17. a7 {[%clk
0:02:35.1]} 17... Qd8 {[%clk 0:01:46]} 18. Nxd6 {[%clk 0:02:33.9]} 18... Re7
{[%clk 0:01:45.9]} 19. b4 {[%clk 0:02:03.4]} 19... e5 {[%clk 0:01:37.5]} 20.
bxc5 {[%clk 0:01:56.7]} 20... Nxc5 {[%clk 0:01:36.3]} 21. Nf5 {[%clk 0:01:54.6]}
21... Re6 {[%clk 0:01:29.9]} 22. Bh4 {[%clk 0:01:40.8]} 22... Qe8 {[%clk
0:01:23.9]} 23. Ng5 {[%clk 0:01:23.8]} 23... Rc6 {[%clk 0:01:18.6]} 24. Bb5
{[%clk 0:01:23.1]} 24... Qd7 {[%clk 0:01:09.7]} 25. Ng3 {[%clk 0:01:12.3]} 25...
h6 {[%clk 0:01:06.9]} 26. Nf3 {[%clk 0:01:11.4]} 26... Qe6 {[%clk 0:01:01.1]}
27. Bxc6 {[%clk 0:01:09.7]} 27... Bxc6 {[%clk 0:01:02]} 28. Bxf6 {[%clk
0:01:09.9]} 28... Qxf6 {[%clk 0:00:58.2]} 29. Qb1 {[%clk 0:01:06.7]} 29... e4
{[%clk 0:00:54.5]} 30. Nd4 {[%clk 0:01:04.3]} 30... Ba8 {[%clk 0:00:51.8]} 31.
Qb5 {[%clk 0:00:59.3]} 31... h5 {[%clk 0:00:49.8]} 32. h3 {[%clk 0:00:53.5]}
32... h4 {[%clk 0:00:49.2]} 33. Ngf5 {[%clk 0:00:49.6]} 33... Qg5 {[%clk
0:00:41.1]} 34. Qxb6 {[%clk 0:00:45.7]} 34... Nd3 {[%clk 0:00:35.7]} 35. Qd6
{[%clk 0:00:40.7]} 35... Rd8 {[%clk 0:00:18.1]} 36. Ne6 {[%clk 0:00:35.2]} 36...
Rxd6 {[%clk 0:00:10.6]} 37. Nxg5 {[%clk 0:00:34.9]} 37... Rf6 {[%clk 0:00:11]}
38. Nd4 {[%clk 0:00:32.6]} 38... Nc5 {[%clk 0:00:07]} 39. Rfc1 {[%clk
0:00:30.5]} 39... Rg6 {[%clk 0:00:07.3]} 40. Rxc5 {[%clk 0:00:30]} 40... Rxg5
{[%clk 0:00:07.9]} 41. Rc8+ {[%clk 0:00:30.5]} 41... Kh7 {[%clk 0:00:08.8]} 42.
Rxa8 {[%clk 0:00:31.3]} 42... Rxg2+ {[%clk 0:00:09.5]} 43. Kxg2 {[%clk
0:00:30.5]} 43... g5 {[%clk 0:00:10.4]} 44. Rb8 {[%clk 0:00:30.1]} 44... g4
{[%clk 0:00:11.3]} 45. a8=Q {[%clk 0:00:30.3]} 45... gxh3+ {[%clk 0:00:12.2]}
46. Kh1 {[%clk 0:00:30.2]} 46... h2 {[%clk 0:00:13.1]} 47. Rb7+ {[%clk
0:00:29.2]} 47... Kh6 {[%clk 0:00:13.1]} 48. Qh8+ {[%clk 0:00:29.4]} 48... Kg5
{[%clk 0:00:13.8]} 49. Rg7+ {[%clk 0:00:28.5]} 49... Kf6 {[%clk 0:00:14.7]} 50.
Qh6+ {[%clk 0:00:27.7]} 50... Ke5 {[%clk 0:00:15.6]} 51. Rg5# {[%clk 0:00:27.6]}
1-0